[Event "Karnataka State Open-ch 2018"]
[Site "Bengaluru"]
[Date "2018.04.17"]
[Round "8"]
[White "Balkishan, A."]
[Black "Keshav Kothari"]
[Result "1-0"]
[ECO "D51"]
[WhiteElo "2026"]
[BlackElo "1715"]
[Annotator "NA"]
[PlyCount "179"]
[EventDate "2018.??.??"]
[EventType "swiss"]
[EventCountry "IND"]
[SourceTitle "playchess.com"]
[Source "ChessBase"]
[SourceQuality "1"]
[TimeControl "5400+30"]

{[%evp 10,179,40,21,40,16,23,0,-5,-20,-12,-16,-8,32767,-6,-15,24,32767,31,29,6,0,0,-13,0,32767,32767,32767,32767,32767,32767,32767,25,32767,32767,32767,32767,41,30,17,46,30,18,8,35,41,52,41,59,0,17,-12,6,24,39,54,35,55,54,57,59,0,56,17,7,19,47,64,47,53,40,54,50,76,65,65,58,58,50,54,65,26,58,53,55,57,54,55,47,57,55,52,62,58,50,50,32767,32767,32767,32767,32767,32767,32767,58,45,0,57,0,44,0,51,14,22,0,0,0,0,0,88,32767,32767,32767,32767,32767,45,7,50,70,97,32767,81,32767,32767,39,39,32767,47,20,68,25,54,11,24,10,92,84,89,72,89,110,110,108,129,105,169,168,695,189,437,519,592,489,464,32767,316,382,32767,32767,604,627,29992,29993]} 1. d4 {[%emt 0:00:00]} d5 {[%emt 0:00:20]} 2. c4 {[%emt 0:00:05]} e6 3. Nc3 {[%emt 0:00:18]} Nf6 {[%emt 0:00:17]} 4. Bg5 Nbd7 {[%emt 0:00:18]} 5. e3 {[%emt 0:00:15]} c6 {[%emt 0:00:06]} 6. Qc2 {[%emt 0:00:13]} Qa5 {[%emt 0:13:36] LiveBook: 30 Games} 7. Bf4 {[%emt 0:10:57] D51: Queen's Gambit Declined: 4 Bg5 Nbd7 sidelines} (7. Bh4 Ne4 8. Bd3 Nxc3 9. bxc3 b6 10. Nf3 dxc4 11. Bxc4 Ba6 12. Qd3 Bxc4 13. Qxc4 Rc8 14. O-O Bd6 15. Rfd1 {1-0 (47) Bocharov,D (2560)-Savchenko,B (2567) Berlin 2015}) 7... Bb4 {[%emt 0:07:14]} 8. Bd3 {[%emt 0:03:11]} dxc4 {[%emt 0:00:37]} 9. Bxc4 {[%emt 0:00:07]} Nd5 $146 {[%emt 0:00:04]} ({Predecessor:} 9... h5 10. Nge2 g5 11. Bg3 h4 12. Be5 Nxe5 13. dxe5 Qxe5 {1-0 (21) Velecky,V (2164)-Sheverniayeu,S (2000) Polanica Zdroj 2005}) 10. Bxd5 {[%emt 0:06:20]} exd5 {[%emt 0:00:30]} 11. Nf3 {[%emt 0:00:54]} O-O {[%emt 0:11:12]} 12. O-O {[%emt 0:03:08]} h6 {[%emt 0:01:44]} 13. a3 {[%emt 0:00:58]} Bxc3 {[%emt 0:19:28]} 14. bxc3 {[%emt 0:00:03]} Nb6 {[%emt 0:00:16]} 15. Bd6 {[%emt 0:08:34]} Re8 {[%emt 0:02:30]} 16. Ne5 {[%emt 0:00:50]} Qa4 {[%emt 0:03:51]} 17. Qe2 {[%emt 0:07:00]} Nc4 {[%emt 0:00:30]} 18. Nxc4 Qxc4 19. Qxc4 {[%emt 0:01:00]} dxc4 {[%emt 0:00:00]} 20. Rfe1 {[%emt 0:03:39]} Bf5 {[%emt 0:03:41]} 21. f3 {[%emt 0:00:22]} Bd3 {[%emt 0:00:06]} 22. e4 {[%emt 0:00:27]} f5 {[%emt 0:00:06]} 23. e5 {[%emt 0:02:51]} Kf7 {[%emt 0:00:09]} 24. a4 {[%emt 0:01:06]} b6 {[%emt 0:02:21]} 25. Ra2 {[%emt 0:00:58]} Ke6 {[%emt 0:03:11]} 26. Kf2 {[%emt 0:01:27]} Red8 {[%emt 0:01:17]} 27. h4 {[%emt 0:03:01]} g6 {[%emt 0:03:41]} 28. Ke3 {[%emt 0:01:31]} Rd7 {[%emt 0:00:14]} 29. Kf4 {[%emt 0:01:55]} (29. a5 $5 {[%cal Ra5b6]} b5 30. g3 $14) 29... Rf7 {[%emt 0:00:56]} 30. Rb2 {[%emt 0:02:50]} Re8 {[%emt 0:01:01]} 31. Rh1 {[%emt 0:02:48]} Rd7 {[%emt 0:03:33]} 32. a5 {[%emt 0:05:46]} b5 {[%emt 0:00:07]} 33. a6 {[%emt 0:00:08]} Rf7 {[%emt 0:01:53]} 34. g3 {[%emt 0:06:01]} Rh8 {[%emt 0:00:45]} 35. Rg2 {[%emt 0:00:52]} Re8 {[%emt 0:00:49]} ({Black should try} 35... g5+ $1 $15 36. Ke3 g4) 36. g4 {[%emt 0:04:03]} fxg4+ {[%emt 0:00:07]} 37. Kxg4 {[%emt 0:00:05]} h5+ {[%emt 0:01:06]} 38. Kg3 {[%emt 0:01:37]} Ra8 {[%emt 0:01:43]} 39. Kf2 {[%emt 0:00:07]} Rg7 {[%emt 0:05:16]} 40. Ke3 {[%emt 0:00:08]} Rf7 {[%emt 0:01:00]} 41. Rhg1 {[%emt 0:00:08]} Rg8 {[%emt 0:00:13]} 42. Rg5 {[%emt 0:00:30]} Rfg7 {[%emt 0:00:06]} 43. Rd1 {[%emt 0:01:17]} Rf7 {[%emt 0:01:25]} 44. Rg2 {[%emt 0:00:25]} Rd7 {[%emt 0:01:17]} 45. Rg3 {[%emt 0:02:58]} Rf7 {[%emt 0:00:20]} ({Better is} 45... Rxd6 $11 46. exd6 Kxd6) 46. Rdg1 {[%emt 0:01:09]} Rfg7 {[%emt 0:00:12]} 47. Rg5 {[%emt 0:00:02]} Bf5 {[%emt 0:00:26]} 48. Kd2 {[%emt 0:00:21]} Bd3 {[%emt 0:01:18]} 49. R1g3 {[%emt 0:00:34]} Bf5 {[%emt 0:00:14]} 50. Kc1 {[%emt 0:00:10]} Rh7 {[%emt 0:01:49]} 51. Kb2 {[%emt 0:00:33]} Rhg7 {[%emt 0:02:32]} 52. Ka3 {[%emt 0:00:03]} Bd3 {[%emt 0:06:35]} 53. Kb4 {[%emt 0:00:04]} Kd5 {[%emt 0:00:14]} 54. Rg1 {[%emt 0:01:58]} Bc2 {[%emt 0:00:17]} 55. Bc5 {[%emt 0:00:41]} Ke6 {[%emt 0:00:06]} 56. Ka5 {[%emt 0:03:34]} Bd3 {[%emt 0:01:46]} 57. Ba3 {[%emt 0:00:24]} ({White should play} 57. R5g3 $14) 57... Bf5 {[%emt 0:01:48]} (57... b4 $1 $11 58. Bxb4 Rb8) 58. Re1 {[%emt 0:03:38]} Re8 {[%emt 0:00:05]} (58... b4 $5 59. Bxb4 (59. Kxb4 Bd3 $11) 59... Rb8 $11) 59. Reg1 {[%emt 0:03:37]} Reg8 {[%emt 0:00:22]} 60. Kb4 {[%emt 0:00:18]} Kd5 {[%emt 0:00:37]} 61. e6 {[%emt 0:00:35]} Kxe6 {[%emt 0:00:40]} 62. Kc5 {[%emt 0:07:16]} Kf6 {[%emt 0:02:32]} 63. Kxc6 {[%emt 0:00:58]} Bd7+ {[%emt 0:00:05]} (63... Rb8 $11 {keeps the balance.}) 64. Kd6 {[%emt 0:02:17]} Bc8 {[%emt 0:00:20]} 65. Rxb5 {[%emt 0:01:03]} Bxa6 {[%emt 0:00:01]} 66. Re5 {[%emt 0:00:52]} Rd8+ {[%emt 0:01:25]} 67. Kc5 {[%emt 0:01:02]} Rc7+ {[%emt 0:00:04]} (67... Rb7 $5 {[%cal Rb7b6]} 68. Rge1 Rb5+ 69. Kc6 Rb6+ 70. Kc7 Rdb8 $14) 68. Kb4 {[%emt 0:00:11]} Bb7 {[%emt 0:00:48]} 69. Rge1 {[%emt 0:00:42]} Bd5 {[%emt 0:00:35]} 70. Ka5 {[%emt 0:00:33]} Rdd7 {[%emt 0:00:33]} 71. Re8 {[%emt 0:00:57]} Bf7 {[%emt 0:00:17]} 72. R8e3 {[%emt 0:00:33]} Rd5+ {[%emt 0:00:56]} 73. Bc5 {[%emt 0:00:02]} Kg7 {[%emt 0:00:48]} (73... g5 $11) 74. Rb1 {[%emt 0:00:51]} Rf5 {[%emt 0:00:21]} 75. Rb8 {[%emt 0:00:13]} Rd7 {[%emt 0:00:20]} 76. Kb4 {[%emt 0:00:39]} Rf4 {[%emt 0:00:55]} (76... g5 $11) 77. Be7 {[%emt 0:01:11]} Bd5 {[%emt 0:00:18]} 78. Kc5 {[%emt 0:00:21]} Rf5 {[%emt 0:00:38]} 79. Bd6 {[%emt 0:00:10]} Bxf3+ {[%emt 0:00:36]} 80. Be5+ {[%emt 0:00:06]} Kf7 {[%emt 0:00:19]} 81. Kxc4 {[%emt 0:00:06]} a5 {[%emt 0:00:19]} 82. Rh8 {[%emt 0:00:50]} Re7 $2 {[%emt 0:00:46]} (82... Bc6 83. Kc5 Bh1) 83. Kb5 $2 {[%emt 0:00:35]} (83. Rh7+ Ke8 84. Rxe7+ Kxe7 85. Bf4+ Kf7 86. Rxf3) 83... Rexe5+ $2 {[%emt 0:00:27]} (83... Bg4 {was worth a try.} 84. c4 (84. Kxa5 Rf3 $18) 84... Rf3 85. Rxf3+ Bxf3 86. Kxa5 Bh1) 84. dxe5 {[%emt 0:00:16]} Bd5 {[%emt 0:00:16]} 85. Kxa5 {[%emt 0:00:38]} Rf4 {[%emt 0:00:06]} 86. Rh7+ {[%emt 0:00:52]} Ke6 {[%emt 0:00:18]} 87. Ra7 {[%emt 0:00:25]} Rxh4 {[%emt 0:00:40]} 88. Ra6+ {[%emt 0:00:02]} Kf7 {[%emt 0:01:15]} 89. e6+ {[%emt 0:00:02]} Kf6 {[%emt 0:00:32]} 90. e7+ 1-0

[Event "Karnataka State Open-ch 2018"]
[Site "Bengaluru"]
[Date "2018.04.17"]
[Round "8"]
[White "Gavi, Siddayya"]
[Black "Ramachandra, Bhat"]
[Result "1-0"]
[ECO "C84"]
[WhiteElo "1993"]
[BlackElo "1661"]
[Annotator "NA"]
[PlyCount "83"]
[EventDate "2018.??.??"]
[EventType "swiss"]
[EventCountry "IND"]
[SourceTitle "playchess.com"]
[Source "ChessBase"]
[SourceQuality "1"]
[TimeControl "5400+30"]

{[%evp 9,83,33,29,20,24,23,22,12,22,23,47,37,44,18,30,19,24,21,32,18,21,3,32767,39,38,23,29,31,28,28,91,32767,32767,32767,32767,32767,1461,1561,1567,1628,1541,1654,1729,1023,1073,414,377,391,431,32767,655,595,922,994,1032,1214,1216,1249,1234,1270,1195,1281,1289,1462,29991,29992,29992,1251,29993,29992,32767,32767,32767,32767,29998,29999]} 1. e4 {[%emt 0:00:00]} e5 {[%emt 0:00:37]} 2. Nf3 {[%emt 0:00:00]} Nc6 {[%emt 0:00:01]} 3. Bb5 {[%emt 0:00:00]} a6 {[%emt 0:00:05]} 4. Ba4 {[%emt 0:00:00]} Nf6 {[%emt 0:00:05]} 5. O-O {[%emt 0:00:00]} Be7 {[%emt 0:00:06]} 6. d3 {[%emt 0:00:12]} d6 {[%emt 0:00:40]} 7. c3 {[%emt 0:00:18]} O-O {[%emt 0:00:56]} 8. Nbd2 {[%emt 0:00:55]} b5 {[%emt 0:01:24]} 9. Bc2 {[%emt 0:00:09]} Nb8 {[%emt 0:00:25] C77: Ruy Lopez: 3...a6 4 Ba4 Nf6, unusual lines} (9... d5 10. d4 exd4 11. e5 d3 12. Bxd3 Ng4 13. Qe2 f6 14. exf6 Nxf6 15. h3 Bd6 16. Re1 Re8 17. Qd1 Rxe1+ 18. Qxe1 {½-½ (43) Karjakin,S (2773)-Aronian,L (2799) Saint Louis 2017}) 10. Re1 {[%emt 0:01:00] LiveBook: 7 Games} c5 {[%emt 0:00:44]} 11. Nf1 {[%emt 0:00:31]} Re8 {[%emt 0:00:37]} 12. Ng3 {[%emt 0:00:24]} Nbd7 {[%emt 0:00:53]} 13. d4 {[%emt 0:01:26]} Qc7 {[%emt 0:00:22]} 14. Nf5 $146 {[%emt 0:00:52]} ({Predecessor:} 14. a4 Rb8 15. h3 Nf8 16. axb5 axb5 {0-1 (33) Adzic,M (2244)-Pantelic,S (2267) Golubac 2008}) 14... Bf8 {[%emt 0:00:15]} 15. Bg5 {[%emt 0:05:07]} Bb7 {[%emt 0:00:20]} 16. d5 {[%emt 0:00:22]} h6 {[%emt 0:00:18]} 17. Be3 {[%emt 0:02:16]} c4 {[%emt 0:05:56]} 18. h3 {[%emt 0:00:59]} Kh7 {[%emt 0:00:18]} 19. g4 {[%emt 0:03:04]} Ng8 {[%emt 0:01:01]} (19... a5 $11) 20. g5 {[%emt 0:08:31]} g6 {[%emt 0:02:38]} 21. gxh6 {[%emt 0:00:34]} gxf5 {[%emt 0:00:41]} 22. Ng5+ {[%emt 0:00:10]} Kg6 {[%emt 0:01:14]} 23. exf5+ {[%emt 0:00:27]} Kf6 {[%emt 0:00:12]} 24. h7 {[%emt 0:00:25]} Bg7 {[%emt 0:00:13]} 25. Qh5 {[%emt 0:02:48]} Nc5 {[%emt 0:02:09]} 26. Nxf7 {[%emt 0:03:27]} Ke7 {[%emt 0:00:46]} 27. h8=Q {[%emt 0:02:18]} (27. Bg5+ $142 Kd7 28. Qg6) 27... Bxh8 {[%emt 0:00:02]} 28. Nxh8 {[%emt 0:00:01]} Bxd5 {[%emt 0:00:36]} 29. Rad1 {[%emt 0:01:29]} Qc6 {[%emt 0:03:09]} (29... Nd3 $142 30. Bxd3 cxd3 31. Bg5+ Kd7 32. Rxd3 Bc4) 30. Bxc5 {[%emt 0:00:18]} Nf6 {[%emt 0:00:30]} 31. Ng6+ {[%emt 0:01:56]} Kd8 {[%emt 0:02:12]} 32. Qh4 {[%emt 0:00:18]} Qxc5 {[%emt 0:00:20]} 33. Qxf6+ {[%emt 0:00:08]} Kc7 {[%emt 0:00:04]} 34. Qg7+ {[%emt 0:02:57]} Kb6 {[%emt 0:00:15] [#]} 35. Rxd5 $1 {[%emt 0:00:43]} Qxd5 {[%emt 0:00:37]} 36. Be4 {[%emt 0:00:12]} Qd2 {[%emt 0:00:13]} 37. Qb7+ {[%emt 0:00:44]} Ka5 {[%emt 0:00:13]} 38. Qc7+ {[%emt 0:00:59]} Ka4 {[%emt 0:00:17]} 39. b3+ {[%emt 0:00:06]} cxb3 {[%emt 0:00:57]} 40. axb3+ {[%emt 0:00:02]} Kxb3 {[%emt 0:00:13]} 41. Rb1+ {[%emt 0:00:04]} Ka4 {[%emt 0:00:30]} 42. Rb4+ {[%emt 0:00:06]} 1-0

[Event "Karnataka State Open-ch 2018"]
[Site "Bengaluru"]
[Date "2018.04.17"]
[Round "8"]
[White "Likhit, Chilukuri"]
[Black "Karmacharya, Upendra"]
[Result "1-0"]
[ECO "B24"]
[WhiteElo "1988"]
[BlackElo "1764"]
[Annotator "NA RC"]
[PlyCount "82"]
[EventDate "2018.??.??"]
[EventType "swiss"]
[EventCountry "IND"]
[SourceTitle "playchess.com"]
[Source "ChessBase"]
[SourceQuality "1"]
[TimeControl "5400+30"]

{[%evp 8,82,20,0,21,23,23,14,14,15,10,16,15,0,32767,32767,8,0,32767,32767,32767,37,52,34,90,14,127,105,104,62,32767,102,138,113,32767,32767,91,94,85,102,98,101,96,95,89,84,327,32767,555,248,223,260,248,243,218,169,403,398,387,340,341,349,937,1696,6829,29972,12834,5185,6293,12839,12840,0,29993,468,29994,29995,29995]} 1. e4 {[%emt 0:00:00]} c5 {[%emt 0:05:51]} 2. Nc3 {[%emt 0:00:00]} Nc6 {[%emt 0:00:13]} 3. Bb5 {[%emt 0:00:00]} Nd4 {[%emt 0:00:32]} 4. Bc4 {[%emt 0:00:00]} a6 {[%emt 0:00:50] LiveBook: 68 Games} 5. a3 {[%emt 0:00:29]} d6 {[%emt 0:00:55]} 6. Nge2 {[%emt 0:00:08]} Nf6 {[%emt 0:02:27]} 7. O-O {[%emt 0:00:24]} g6 {[%emt 0:00:24]} 8. d3 {[%emt 0:00:14]} Bg7 {[%emt 0:00:54]} 9. Ba2 {[%emt 0:00:38]} O-O {[%emt 0:00:31]} 10. f4 {[%emt 0:00:38]} Be6 {[%emt 0:02:44]} 11. Bxe6 {[%emt 0:03:09]} Nxe6 {[%emt 0:00:52]} 12. f5 {[%emt 0:00:07]} Nc7 {[%emt 0:00:24]} 13. Qe1 {[%emt 0:00:42]} Nd7 {[%emt 0:00:27]} 14. g4 {[%emt 0:06:12]} b5 {[%emt 0:00:59]} 15. Qh4 {[%emt 0:00:42]} f6 {[%emt 0:01:41]} 16. g5 {[%emt 0:00:30]} (16. b4 $16) 16... fxg5 {[%emt 0:01:47]} (16... Ne5 $11 {remains equal.}) 17. Bxg5 {[%emt 0:00:09]} Bf6 {[%emt 0:00:17]} 18. Nf4 {[%emt 0:04:33]} Ne5 {[%emt 0:00:40]} 19. Ncd5 {[%emt 0:01:53]} Nxd5 {[%emt 0:00:28]} 20. Ne6 {[%emt 0:05:35]} Qb6 {[%emt 0:00:58]} 21. Nxf8 {[%emt 0:00:20]} Rxf8 {[%emt 0:00:53]} 22. exd5 {[%emt 0:00:07]} c4+ {[%emt 0:00:32]} 23. Kh1 {[%emt 0:00:07]} cxd3 {[%emt 0:00:23]} 24. Bxf6 {[%emt 0:00:32]} Rxf6 {[%emt 0:00:08]} 25. fxg6 {[%emt 0:00:10]} Nxg6 {[%emt 0:01:14]} 26. Qe4 {[%emt 0:00:23]} Rf2 $2 {[%emt 0:01:24]} (26... Rxf1+ $16 {keeps fighting.} 27. Rxf1 dxc2) 27. cxd3 {[%emt 0:03:47]} Kg7 {[%emt 0:03:05]} (27... Qc5 {was called for.} 28. Rac1 Rxf1+ 29. Rxf1 Kh8) 28. Rg1 {[%emt 0:01:00]} (28. h4 $142) 28... Qc7 {[%emt 0:03:00]} 29. Rae1 {[%emt 0:00:27]} Rf7 {[%emt 0:00:18]} 30. Qd4+ {[%emt 0:00:20]} Kg8 {[%emt 0:01:04]} 31. Re6 {[%emt 0:00:19]} Rg7 $2 {[%emt 0:00:25]} (31... Qc8 {is a better defense.} 32. Qg4 Qf8) 32. h4 {[%emt 0:01:04]} Ne5 {[%emt 0:01:13]} 33. h5 {[%emt 0:05:13]} Rxg1+ {[%emt 0:02:28]} 34. Qxg1+ {[%emt 0:00:07]} Kf7 $2 {[%emt 0:00:03]} (34... Kf8 35. h6 Ng6 36. Qf1+ Kg8) 35. Rh6 {[%emt 0:01:02]} Qc8 {[%emt 0:01:29]} 36. Rxh7+ {[%emt 0:00:08]} Kf6 {[%emt 0:00:03]} 37. Qf2+ {[%emt 0:02:08]} (37. Qe3 $142 Qg4 38. Qh6+ Ng6 39. Qxg6+ Qxg6 40. hxg6 Kxg6 41. Rxe7 a5 42. Rb7) 37... Kg5 $11 {[%emt 0:01:17]} 38. Qe3+ {[%emt 0:01:22]} Kh4 {[%emt 0:00:48]} 39. Qf2+ $2 {[%emt 0:02:01]} (39. Rg7 $18 Ng4 40. Qg5+ Kh3 41. h6) 39... Kh3 $2 {[%emt 0:00:11]} 40. Qh2+ {[%emt 0:00:13]} Kg4 {[%emt 0:00:45]} 41. Rg7+ {[%emt 0:00:13]} Kf3 1-0

[Event "Karnataka State Open-ch 2018"]
[Site "Bengaluru"]
[Date "2018.04.17"]
[Round "8"]
[White "Kishan, Gangolli"]
[Black "Chirag Mudraje"]
[Result "1-0"]
[ECO "D37"]
[WhiteElo "1974"]
[BlackElo "1641"]
[Annotator "NA RC"]
[PlyCount "45"]
[EventDate "2018.??.??"]
[EventType "swiss"]
[EventCountry "IND"]
[SourceTitle "playchess.com"]
[Source "ChessBase"]
[SourceQuality "1"]
[TimeControl "5400+30"]

1. d4 Nf6 2. c4 e6 3. Nf3 d5 4. Nc3 Be7 5. cxd5 exd5 6. Qc2 O-O 7. Bg5 Nbd7 8. e3 b6 9. Bd3 Bb7 10. O-O h6 11. Bh4 c5 12. Bf5 cxd4 13. Nxd4 Rc8 14. Rfd1 g5 15. Bg3 Rc5 16. Qe2 Qe8 17. Qf3 Bd8 18. Bb8 Ne5 19. Qh3 Kg7 20. Bc2 Bc8 21. Nf5+ Bxf5 22. Qxf5 Be7 23. Bxe5 1-0

[Event "Karnataka State Open-ch 2018"]
[Site "Bengaluru"]
[Date "2018.04.17"]
[Round "8"]
[White "Santoshkashyap, Hg"]
[Black "Arhan, Chethan Anand"]
[Result "1/2-1/2"]
[ECO "D37"]
[WhiteElo "1929"]
[BlackElo "1526"]
[Annotator "NA"]
[PlyCount "21"]
[EventDate "2018.??.??"]
[EventType "swiss"]
[EventCountry "IND"]
[SourceTitle "playchess.com"]
[Source "ChessBase"]
[SourceQuality "1"]
[TimeControl "5400+30"]

{[%evp 10,19,28,20,21,32767,32767,32767,40,-397,48,-79]} 1. d4 {[%emt 0:00:00]} d5 {[%emt 0:00:08]} 2. Nf3 {[%emt 0:00:00]} Nf6 {[%emt 0:00:21]} 3. c4 {[%emt 0:00:00]} e6 {[%emt 0:00:07]} 4. Nc3 {[%emt 0:00:00]} Be7 {[%emt 0:00:09]} 5. Bf4 {[%emt 0:00:07]} O-O {[%emt 0:00:30]} 6. e3 {[%emt 0:00:04]} Nbd7 {[%emt 0:00:11] LiveBook: 1755 Games} 7. g3 {[%emt 0:00:44]} Re8 {[%emt 0:04:59]} 8. c5 {[%emt 0:14:04]} e5 {[%emt 0:06:55]} ({Black should try} 8... c6 $15) 9. Nb5 $2 {[%emt 0:02:10]} (9. Nxe5 $14 {stays ahead.} Nxe5 10. Bxe5) 9... Nh5 $14 {[%emt 0:07:02]} (9... exf4 $19 10. gxf4 b6 11. cxb6 Bb4+ 12. Nc3 axb6) 10. dxe5 {[%emt 0:22:05]} (10. Bxe5 $14 {stays ahead.} Nxe5 11. Nxe5) 10... Nxf4 {[%emt 0:00:22]} 11. e6 {[%emt 0:00:24]} 1/2-1/2

[Event "Karnataka State Open-ch 2018"]
[Site "Bengaluru"]
[Date "2018.04.17"]
[Round "8"]
[White "Parthasarathy, R."]
[Black "Shreyas, Pavan"]
[Result "1-0"]
[ECO "C25"]
[WhiteElo "1926"]
[BlackElo "1520"]
[Annotator "NA RC"]
[PlyCount "81"]
[EventDate "2018.??.??"]
[EventType "swiss"]
[EventCountry "IND"]
[SourceTitle "playchess.com"]
[Source "ChessBase"]
[SourceQuality "1"]
[TimeControl "5400+30"]

{[%evp 8,81,21,0,24,20,32767,7,23,11,40,37,32767,32767,48,20,19,8,21,32767,32767,32767,32767,32767,32767,32767,32767,32767,32767,32767,32767,32767,32767,114,110,77,79,135,113,64,116,125,137,7,21,19,30,39,28,20,32,14,110,136,235,292,311,378,372,442,684,660,594,345,280,367,447,502,718,804,723,776,1046,1023,1135,1464]} 1. e4 {[%emt 0:00:00]} e5 {[%emt 0:00:24]} 2. Nc3 {[%emt 0:00:03]} Nc6 {[%emt 0:00:50]} 3. f4 {[%emt 0:01:49]} d6 {[%emt 0:02:29]} 4. Bc4 {[%emt 0:04:18]} Nf6 {[%emt 0:02:27]} 5. Nf3 {[%emt 0:00:35]} Be7 {[%emt 0:03:39] LiveBook: 7 Games} 6. O-O {[%emt 0:00:16]} O-O {[%emt 0:01:01]} 7. d3 {[%emt 0:02:22]} a6 {[%emt 0:03:52] C28: Vienna Game: 2...Nf6 3 Bc4 Nc6} 8. Kh1 {[%emt 0:06:42]} (8. a4 exf4 9. Bxf4 Bg4 10. d4 Nb4 11. h3 Bh5 12. Bb3 c6 13. Ne2 a5 14. c3 {1-0 (41) Dgebuadze,A (2521)-Kugelmann,W (2069) Schwaebisch Gmuend 2018}) 8... Nd7 $146 {[%emt 0:03:56]} ({Find the theoretical novelty and annotate with similar games:} 8... Bg4 9. Qe1 exf4 10. Bxf4 Na5 11. Bb3 Nxb3 12. axb3 Re8 13. Qf2 Qd7 14. h3 {½-½ (23) Struik,T (2189)-Van Run,R (2142) Hengelo 2003}) 9. a3 {[%emt 0:02:45]} exf4 {[%emt 0:03:25]} 10. Bxf4 {[%emt 0:09:05]} Nde5 {[%emt 0:02:14]} 11. Ba2 {[%emt 0:01:08]} Be6 {[%emt 0:01:51]} 12. Nd5 {[%emt 0:04:13]} Nxf3 {[%emt 0:02:50]} 13. gxf3 {[%emt 0:00:30]} Ne5 {[%emt 0:04:48]} 14. Be3 {[%emt 0:02:34]} Bxd5 {[%emt 0:05:31]} 15. Bxd5 {[%emt 0:01:29]} c6 {[%emt 0:01:53]} 16. Bb3 {[%emt 0:00:56]} Bf6 {[%emt 0:04:38]} 17. f4 Nd7 {[%emt 0:03:05]} 18. d4 {[%emt 0:04:17]} g6 {[%emt 0:05:28]} 19. e5 Bg7 {[#]} 20. Qg4 {[%emt 0:13:15]} ({Resist} 20. exd6 $6 Nf6 $14) (20. f5 $1 $18) 20... Kh8 {[%emt 0:08:23]} 21. Rad1 {[%emt 0:02:31]} f5 {[%emt 0:03:01]} 22. Qg2 {[%emt 0:02:28]} d5 {[%emt 0:00:23]} 23. c4 {[%emt 0:01:58]} Nb6 {[%emt 0:01:10]} ({Better is} 23... dxc4 $1 $14 24. Bxc4 Nb6) 24. c5 {[%emt 0:01:23]} Nd7 {[%emt 0:01:19]} 25. Bxd5 {[%emt 0:00:42]} ({White should try} 25. Rf3 $16) 25... cxd5 {[%emt 0:00:34]} 26. Qxd5 {[%emt 0:00:16]} Qc7 {[%emt 0:02:03]} 27. b4 {[%emt 0:03:11]} Rad8 {[%emt 0:01:42]} 28. Qg2 {[%emt 0:00:58]} Rfe8 {[%emt 0:01:30]} 29. Rfe1 {[%emt 0:00:19]} a5 {[%emt 0:02:58]} (29... Qc6 $11) 30. b5 {[%emt 0:01:47]} Nb8 {[%emt 0:03:08]} (30... Bf8 $16 {was called for.}) 31. d5 {[%emt 0:02:16]} Qd7 {[%emt 0:03:01]} 32. a4 Kg8 {[%emt 0:01:20]} 33. Bf2 {[%emt 0:04:14]} Bh6 {[%emt 0:02:07]} (33... Bf8 $142 34. d6 Rc8 35. Qd5+ Re6) 34. Qf3 {[%emt 0:01:40]} Qc7 {[%emt 0:01:45]} 35. c6 {[%emt 0:06:12]} (35. Qb3 $142) 35... bxc6 {[%emt 0:01:07]} 36. bxc6 {[%emt 0:00:25]} ({Weaker is} 36. dxc6 Rc8 $16) 36... Bg7 {[%emt 0:00:47]} (36... Nxc6 $142 37. dxc6 Rxd1 38. Rxd1 Re6) 37. Qb3 {[%emt 0:00:40]} Kh8 {[%emt 0:00:40]} (37... Qf7 $142 38. c7 Qxc7 39. d6+ Qf7) 38. Bb6 {[%emt 0:00:17]} Qc8 {[%emt 0:01:23]} 39. Bxd8 {[%emt 0:00:13]} Rxd8 {[%emt 0:00:16]} 40. Rc1 {[%emt 0:01:08]} Re8 {[%emt 0:01:02]} 41. d6 $18 {[%emt 0:01:19]} 1-0